bitfinex/quotes_ETHUSD_20250708
["timestamp","ask_amount","ask_price","bid_price","bid_amount"]
[1751979829962,0.002,2586.8,2586.7,6.81995369]
[1751979830169,0.002,2586.8,2586.7,14.12295369]
[1751979830757,0.002,2586.8,2586.7,14.12195369]
[1751979831271,0.002,2586.8,2586.7,0.1928]
[1751979831770,0.002,2586.8,2586.7,6.0638]
[1751979831947,0.002,2586.8,2586.7,0.1928]
[1751979832149,0.002,2586.8,2586.7,6.0638]
[1751979832340,0.002,2586.8,2586.7,0.1928]
[1751979832536,0.002,2586.8,2586.7,6.0638]
[1751979832738,0.36313597,2586.8,2586.7,6.0638]
[1751979833064,0.002,2586.8,2586.7,6.0638]
[1751979833270,0.36313597,2586.8,2586.7,6.0638]
[1751979833959,4.22891608,2586.8,2586.7,6.0638]
[1751979834157,16.03836054,2586.8,2586.7,6.0638]
[1751979836494,14.22891608,2586.8,2586.7,0.1928]
[1751979836947,14.22891608,2586.8,2586.7,6.0638]
[1751979837649,14.22891608,2586.8,2586.7,0.1928]
[1751979837869,3.86617429,2586.6,2586.4,1.431]
[1751979838075,3.86617429,2586.6,2586.5,5.871]
[1751979838250,3.86617429,2586.6,2586.5,6.0638]
[1751979839074,3.86601812,2586.7,2586.5,6.0638]
[1751979839777,0.36113792,2586.6,2586.5,6.0638]
[1751979840783,10.0,2586.7,2586.5,6.0638]
[1751979841078,10.0,2586.7,2586.6,0.7738]
[1751979841377,0.002,2586.8,2586.6,11.34527728]
[1751979841583,0.002,2586.8,2586.7,9.77558885]
[1751979841881,0.002,2586.8,2586.7,9.92972956]
[1751979844394,0.002,2586.8,2586.7,0.1928]
[1751979844554,3.86778011,2586.8,2586.7,0.1928]
[1751979844891,0.002,2586.8,2586.7,6.0638]
[1751979845574,0.002,2586.8,2586.7,6.0628]
[1751979846083,3.86778011,2586.8,2586.7,6.0628]
[1751979846252,3.86778011,2586.8,2586.5,2.2592]
[1751979846253,13.86592956,2586.7,2586.1,9.291]
[1751979846457,13.86646084,2586.4,2586.3,0.1928]
[1751979846655,10.36122075,2586.4,2586.3,0.1928]
[1751979846979,14.22759872,2586.4,2586.3,0.1928]
[1751979848405,10.36122075,2586.4,2586.3,0.1928]
[1751979851197,10.36122075,2586.4,2586.3,6.0638]
[1751979852369,10.3616268,2586.4,2586.3,6.0638]
[1751979854177,10.3616268,2586.4,2586.3,0.1928]
[1751979854377,10.3616268,2586.4,2586.3,6.0638]
[1751979855003,14.22800477,2586.4,2586.3,5.871]
[1751979858096,3.86652747,2586.3,2586.2,6.0638]
[1751979858300,4.22822697,2586.3,2586.2,6.0638]
[1751979858503,16.03767686,2586.3,2586.2,0.1928]
[1751979858680,16.03767686,2586.3,2586.2,6.0638]
[1751979859708,10.3616995,2586.3,2586.2,6.0638]
[1751979865917,10.3616995,2586.3,2586.2,9.93047697]
[1751979874522,10.3616995,2586.3,2586.2,4.05947697]
[1751979874684,10.3616995,2586.3,2586.2,9.93047697]
[1751979875193,14.22822697,2586.3,2586.2,0.1928]
[1751979875380,14.22822697,2586.3,2585.7,3.86737883]
[1751979875381,10.0,2586.1,2585.7,3.86732437]
[1751979875585,0.3616995,2586.0,2585.8,5.871]
[1751979875829,0.3616995,2585.9,2585.7,0.1928]
[1751979876007,0.3616995,2585.9,2585.4,5.29784704]
[1751979876008,0.3616995,2585.8,2585.4,5.29784704]
[1751979876214,0.36255425,2585.7,2585.5,9.931492]
[1751979876516,10.0,2585.8,2585.5,6.0638]
[1751979876719,0.36255425,2585.7,2585.5,6.0638]
[1751979877020,0.36257063,2585.6,2585.5,4.06052208]
[1751979877328,0.36257063,2585.6,2585.5,6.0638]
[1751979878117,0.36257063,2585.6,2585.5,9.93152384]
[1751979878320,0.36257063,2585.6,2585.5,11.45455716]
[1751979878722,0.36257063,2585.6,2585.5,18.16006139]
[1751979878927,0.36257063,2585.6,2585.5,18.99126139]
[1751979879624,0.36257063,2585.6,2585.5,12.28575716]
[1751979880541,1.39121342,2586.0,2585.8,3.86727511]
[1751979880729,0.36212975,2585.9,2585.8,9.73827511]
[1751979881832,0.36208091,2585.9,2585.8,9.73827511]
[1751979883538,0.36208091,2585.9,2585.7,0.1928]
[1751979883701,0.36208091,2585.9,2585.6,6.0638]
[1751979883702,0.36208091,2585.8,2585.6,6.0638]
[1751979883907,10.1928,2585.9,2585.7,5.871]
[1751979884105,0.48302891,2585.8,2585.6,5.871]
[1751979884422,0.36202685,2585.7,2585.6,5.871]
[1751979884607,0.36202685,2585.7,2585.6,9.73857425]
[1751979884810,0.36202685,2585.7,2585.6,5.871]
[1751979885741,0.36202685,2585.7,2585.6,9.73857425]
[1751979886345,0.36202685,2585.7,2585.6,5.871]
[1751979886713,0.36202685,2585.7,2585.6,9.73857425]
[1751979887207,0.36202685,2585.7,2585.6,9.93137425]
[1751979889904,7.89,2586.1,2585.9,3.86712556]
[1751979890104,17.89,2586.1,2586.0,9.93077602]
[1751979890339,18.37283496,2586.1,2586.0,9.93077602]
[1751979890564,10.48283496,2586.1,2586.0,9.93077602]
[1751979890705,0.36184875,2586.1,2586.0,17.46688025]
[1751979890905,0.36184875,2586.1,2586.0,19.74338083]
[1751979891843,0.36184875,2586.1,2586.0,13.0378766]
[1751979892337,0.36184875,2586.3,2586.0,13.0378766]
[1751979892552,0.002,2586.4,2586.3,3.86652747]
[1751979892840,1.87445945,2586.4,2586.3,9.73752747]
[1751979893006,0.48479169,2586.4,2586.3,9.73752747]
[1751979893842,0.48479169,2586.4,2586.3,9.93032747]
[1751979894625,0.48479169,2586.4,2586.3,6.0638]
[1751979894815,0.48479169,2586.4,2586.3,9.93032747]
[1751979897366,0.48474429,2586.4,2586.3,9.93032747]
[1751979900771,0.48474429,2586.4,2586.3,6.0638]
[1751979901438,0.48474429,2586.4,2586.3,9.93032747]
[1751979901637,0.48474429,2586.4,2586.3,6.0638]
[1751979903968,0.48473733,2586.4,2586.3,6.0638]
[1751979906071,0.48473733,2586.4,2586.3,9.93032747]
[1751979906271,0.48473733,2586.4,2586.3,6.0638]
[1751979906871,0.48471751,2586.4,2586.3,9.93032747]
[1751979907875,0.48471751,2586.4,2586.3,4.05932747]
[1751979908083,0.48471751,2586.4,2586.3,6.0628]
[1751979908374,0.38471751,2586.4,2586.3,6.0628]
[1751979908874,0.38471751,2586.4,2586.3,9.92932747]
[1751979909358,0.38471751,2586.4,2586.3,6.0628]
[1751979912050,0.38471751,2586.4,2586.3,5.869]
[1751979913082,0.38471751,2586.4,2586.3,9.73552747]
[1751979913865,0.36174895,2586.4,2586.3,4.05932747]
[1751979914071,0.36174895,2586.4,2586.3,6.0618]
[1751979915850,10.36174895,2586.4,2586.3,6.0618]
[1751979917276,11.75274208,2586.4,2586.3,6.0618]
[1751979917662,1.75274208,2586.4,2586.3,6.0618]
[1751979919767,1.75390345,2586.4,2586.3,6.0618]
[1751979920586,5.62028142,2586.4,2586.3,6.0618]
[1751979920792,6.56893579,2586.4,2586.3,0.1928]
[1751979920952,6.56893579,2586.4,2586.3,6.0618]
[1751979921148,6.56893579,2586.4,2586.3,0.1928]
[1751979921353,3.86673625,2586.2,2585.8,0.8022]
[1751979921552,5.62182269,2586.1,2585.9,6.0618]
[1751979921755,0.36272879,2586.0,2585.9,6.0618]
[1751979921984,15.62259329,2586.0,2585.9,6.0618]
[1751979922179,1.75561727,2586.0,2585.9,6.0618]
[1751979923290,0.36272879,2586.0,2585.9,6.0618]
[1751979924987,0.36272879,2586.0,2585.9,10.69412556]
[1751979925284,0.36272879,2586.0,2585.9,19.52633186]
[1751979926693,1.39376971,2586.4,2586.1,3.86678758]
[1751979926891,0.36242891,2586.3,2586.2,5.869]
[1751979927089,0.36242891,2586.3,2586.2,6.0618]
[1751979927494,0.36242119,2586.3,2586.2,6.0618]
[1751979928797,0.36242119,2586.3,2586.2,9.92847697]
[1751979929097,0.36242119,2586.3,2586.2,12.10910408]
[1751979930361,0.36241864,2586.3,2586.2,12.10910408]
[1751979930573,0.36241864,2586.3,2586.2,8.24242711]
[1751979930773,0.36241864,2586.3,2586.2,6.8629]
[1751979931090,0.36241864,2586.3,2586.2,6.0618]
[1751979933297,0.36241864,2586.3,2586.2,0.1928]
[1751979933498,0.36241864,2586.3,2586.2,6.0618]
[1751979934091,0.36241864,2586.3,2586.2,9.92847697]
[1751979934284,0.36241864,2586.3,2586.2,12.06174577]
[1751979934676,0.36241864,2586.3,2586.2,8.1950688]
[1751979935008,0.36241864,2586.3,2586.2,0.1928]
[1751979935305,1.75423182,2586.3,2586.2,6.0618]
[1751979935616,1.75421482,2586.3,2586.2,9.92847697]
[1751979935906,1.75421482,2586.3,2586.2,6.0618]
[1751979936086,0.36241864,2586.3,2586.2,0.1928]
[1751979936288,0.36241864,2586.3,2586.2,6.0608]
[1751979936608,10.36241864,2586.3,2586.2,6.0608]
[1751979936806,11.75420618,2586.3,2586.2,6.0608]
[1751979937206,1.75420618,2586.3,2586.2,6.0608]
[1751979937416,0.36241864,2586.3,2586.2,6.0608]
[1751979938439,0.36241864,2586.3,2586.2,9.92747697]
[1751979939087,0.36241864,2586.3,2586.2,6.0608]
[1751979939319,0.36246766,2586.3,2586.2,6.0608]
[1751979939812,0.36246766,2586.3,2586.2,9.92747697]
[1751979940282,0.36246766,2586.3,2586.2,6.0608]
[1751979942192,0.36246766,2586.3,2586.2,9.92747697]
[1751979943120,0.36246766,2586.3,2586.2,6.0608]
[1751979943820,0.36246766,2586.3,2586.2,0.1928]
[1751979944022,0.36246766,2586.3,2586.2,6.0608]
[1751979944706,0.36246766,2586.3,2586.2,9.92747697]
[1751979945218,1.75431005,2586.3,2586.2,9.92747697]
[1751979945433,1.75445112,2586.3,2586.2,9.92747697]
[1751979945648,0.36246766,2586.3,2586.2,9.92747697]
[1751979946432,0.36246766,2586.3,2586.2,4.05947697]
[1751979946628,0.36246766,2586.3,2586.2,0.1928]
[1751979947035,14.22899513,2586.3,2586.2,0.1928]
[1751979947200,13.31675057,2586.3,2586.2,0.1928]
[1751979947531,13.31675057,2586.3,2586.2,6.0608]
[1751979947897,11.75445257,2586.3,2586.2,6.0608]
[1751979948325,11.75445257,2586.3,2586.2,0.1928]
[1751979948630,11.75445257,2586.3,2586.2,6.0608]
[1751979948999,11.75450858,2586.3,2586.2,6.0608]
[1751979951235,11.75456992,2586.3,2586.2,6.0608]
[1751979951930,11.75456992,2586.3,2586.2,0.1928]
[1751979952129,11.75456992,2586.3,2586.2,6.0598]
[1751979954012,11.75468551,2586.3,2586.2,6.0598]
[1751979954424,11.75521282,2586.3,2586.2,6.0598]
[1751979954737,11.75521282,2586.3,2586.2,0.1928]
[1751979954924,11.75521282,2586.3,2586.2,6.0598]
[1751979956416,11.75521282,2586.3,2586.2,0.1928]
[1751979956825,11.7552868,2586.3,2586.2,0.1928]
[1751979957322,13.31765994,2586.3,2586.1,5.868]
[1751979957511,1.7552868,2586.2,2586.1,5.868]
[1751979959647,1.7552868,2586.2,2586.1,9.73482649]
[1751979960144,0.36271857,2586.2,2586.1,9.73482649]
[1751979961050,0.36271857,2586.2,2586.1,10.51972649]
[1751979961341,0.36271857,2586.2,2586.1,12.82174568]
[1751979964914,10.0,2586.3,2586.1,12.82174568]
[1751979964915,10.0,2586.3,2586.2,3.86667697]
[1751979965148,11.75557076,2586.3,2586.2,3.86667697]
[1751979965745,0.36271956,2586.3,2586.2,3.86667697]
[1751979966135,0.36271956,2586.3,2586.2,3.90534373]
[1751979966323,0.36271956,2586.3,2586.2,6.63529921]
[1751979966628,0.36271956,2586.3,2586.2,6.59663245]
[1751979973542,0.36271956,2586.3,2586.2,7.35813245]
[1751979973749,0.36271956,2586.3,2586.2,7.39679921]
[1751979974478,0.002,2586.4,2586.3,3.86652747]
[1751979974677,0.36446709,2586.4,2586.3,19.22667744]
[1751979974848,0.002,2586.4,2586.3,20.19917744]
[1751979975749,1e-08,2586.4,2586.3,20.19917744]
[1751979978659,1e-08,2586.4,2586.3,14.33417744]
[1751979978983,1e-08,2586.4,2586.3,21.62717744]
[1751979981385,1e-08,2586.4,2586.3,21.62617744]
[1751979982351,1e-08,2586.4,2586.3,14.33417744]
[1751979982681,1e-08,2586.4,2586.3,21.62617744]
[1751979984383,1e-08,2586.4,2586.3,14.33417744]
[1751979984583,1e-08,2586.4,2586.3,14.92067321]
[1751979990268,1e-08,2586.4,2586.3,7.62867321]
[1751979990498,1e-08,2586.4,2586.3,14.91967321]
[1751979992605,1e-08,2586.4,2586.3,14.92067321]
[1751979994669,1e-08,2586.4,2586.3,7.62967321]
[1751979995073,1e-08,2586.4,2586.3,14.91967321]
[1751980000084,1e-08,2586.4,2586.3,7.62967321]
[1751980000296,1e-08,2586.4,2586.3,14.91867321]
[1751980001790,1e-08,2586.4,2586.3,7.62967321]
[1751980001986,1e-08,2586.4,2586.3,14.91867321]
[1751980010014,1e-08,2586.8,2586.7,3.86592956]
[1751980010215,1e-08,2586.8,2586.7,17.25053379]
[1751980013706,0.36210229,2587.4,2587.2,0.7724]
[1751980013920,4.63575415,2588.7,2587.2,0.7724]
[1751980013921,4.63575415,2588.9,2587.4,17.47790423]
[1751980014209,5.86739659,2589.2,2587.2,0.28329863]
[1751980014210,0.0727039,2589.2,2589.1,3.86234598]
[1751980014429,0.0727039,2589.2,2589.1,4.75069354]
[1751980014609,0.0727039,2589.2,2589.1,18.74457432]
[1751980015335,0.0727039,2589.2,2589.1,17.89485021]
[1751980015510,0.0727039,2589.2,2589.1,3.86234598]
[1751980015744,0.0727039,2589.2,2589.1,11.19534598]
[1751980016102,0.0727039,2589.2,2588.9,0.7724]
[1751980016311,0.0727039,2589.2,2589.1,10.56785021]
[1751980016726,0.0727039,2589.2,2589.1,9.78534598]
[1751980017948,13.44478507,2589.9,2589.3,3.86196677]
[1751980018115,1.60612026,2589.8,2589.4,5.923]
[1751980018314,1.60612026,2589.8,2589.4,9.7848357]
[1751980018719,1.60612026,2589.8,2589.5,3.90032129]
[1751980019018,1.60612026,2589.8,2589.6,5.923]
[1751980019221,1.11897028,2589.7,2589.6,5.923]
[1751980019539,1.11897028,2589.7,2588.7,3.86288266]
[1751980019705,1.11897028,2589.7,2589.3,3.86190953]
[1751980019906,1.11897028,2589.7,2589.4,5.922]
[1751980020120,1.11897028,2589.7,2589.6,0.1928]
[1751980020335,1.11897028,2589.7,2589.6,6.1158]
[1751980021641,4.98042141,2589.7,2589.6,0.1928]
[1751980021810,1.11897028,2589.7,2589.6,0.1928]
[1751980022638,1.11897028,2589.7,2589.6,4.05440024]
[1751980022840,2.2,2590.0,2589.7,3.86144939]
[1751980023041,2.2,2590.0,2589.7,9.78044939]
[1751980023432,2.2,2590.0,2589.7,9.97324939]
[1751980023905,2.2,2590.0,2589.7,5.919]
[1751980024237,2.2,2590.0,2589.9,0.1928]
[1751980024416,2.2,2590.0,2589.9,9.97595294]
[1751980024622,2.2,2590.0,2589.9,0.1928]
[1751980024942,2.44741195,2590.0,2589.9,6.1148]
[1751980026630,6.30841581,2590.0,2589.9,0.1928]
[1751980026831,2.44741195,2590.0,2589.8,5.92]
[1751980027046,3.86137455,2589.8,2589.6,6.1128]
[1751980027349,0.77225275,2589.7,2589.6,6.1128]
[1751980027530,3.86137455,2589.8,2589.6,0.1928]
[1751980027734,3.86137455,2589.8,2589.6,6.1128]
[1751980027945,3.86145113,2589.7,2589.6,0.1928]
[1751980028140,10.0,2589.8,2589.4,0.1928]
[1751980028348,3.86167616,2589.6,2589.4,0.1928]
[1751980029115,3.86135938,2589.8,2589.4,0.1928]
[1751980029320,3.86145113,2589.7,2589.4,0.1928]
[1751980029556,3.86160543,2589.6,2589.4,0.1928]
[1751980030455,3.86152852,2589.7,2589.4,0.1928]
[1751980030617,0.77228879,2589.6,2589.4,0.1928]
[1751980030819,3.86174937,2589.5,2589.4,0.1928]
[1751980031048,3.86199436,2589.4,2588.9,5.31658993]
[1751980031218,3.86174937,2589.5,2589.2,0.1928]
[1751980031219,3.86182354,2589.5,2589.2,0.1928]
[1751980031525,4.32531441,2589.4,2589.2,0.1928]
[1751980031724,4.32531955,2589.4,2589.2,0.1928]
[1751980031940,3.86204765,2589.3,2589.2,0.1928]
[1751980032149,4.68078437,2589.3,2589.2,0.1928]
[1751980032653,0.81873672,2589.3,2589.2,0.1928]
[1751980032849,4.82674782,2589.6,2589.3,3.86203169]
[1751980032850,0.77228879,2589.6,2589.3,3.86203169]
[1751980033148,0.77228879,2589.6,2589.3,9.77903169]
[1751980033322,0.77228879,2589.6,2589.3,6.1098]
[1751980033523,0.77228879,2589.6,2589.3,9.97184343]
[1751980033722,14.05415793,2589.8,2589.4,3.86183524]
[1751980033723,10.0,2589.8,2589.4,3.86183524]
[1751980034023,13.86130348,2589.8,2589.5,0.1928]
[1751980034451,13.8613799,2589.8,2589.5,0.1928]
[1751980034654,10.0,2589.8,2589.5,0.1928]
[1751980035949,10.0,2589.8,2588.3,3.86342604]
[1751980035950,3.86247199,2589.1,2588.3,3.86342604]
[1751980036151,0.55,2589.1,2588.4,3.86330172]
[1751980036350,0.55,2589.1,2588.3,9.78142665]
[1751980036351,3.86266706,2588.9,2588.3,9.78142665]
[1751980036554,3.86282388,2588.8,2588.3,9.78142665]
[1751980036728,3.86268044,2588.9,2588.4,5.931]
[1751980036929,3.86271671,2588.9,2588.4,9.79437936]
[1751980037648,3.86282217,2588.8,2588.4,5.931]
[1751980038521,3.86253961,2589.0,2588.4,9.79435624]
[1751980038522,3.86269214,2588.9,2588.4,9.79435624]
[1751980039226,2.3765824,2589.7,2588.5,0.7849]
[1751980039423,15.932,2589.6,2588.5,4.64808581]
[1751980039628,15.932,2589.6,2588.5,4.64812172]
[1751980039841,3.86226691,2589.2,2588.7,3.86291633]
[1751980040239,3.86226691,2589.2,2588.7,9.79491633]
[1751980040641,10.0,2589.2,2588.8,3.86278044]
[1751980040954,10.0,2589.2,2588.7,9.79486277]
[1751980041560,10.0,2589.2,2588.8,3.86278308]
[1751980041756,13.86222713,2589.2,2588.7,9.79486334]
[1751980042760,3.86235707,2589.1,2588.7,9.79486334]
[1751980042954,13.86226265,2589.2,2588.7,9.79486334]
[1751980043761,10.0,2589.2,2588.8,3.86276962]
[1751980044359,3.86220316,2589.2,2588.7,9.79486721]
[1751980044565,2.3765824,2589.7,2588.8,0.87066113]
[1751980044759,3.86207359,2589.3,2588.8,3.8626589]
[1751980044961,3.86221472,2589.2,2588.8,3.8626589]
[1751980045161,10.0,2589.5,2588.7,5.932]
[1751980045364,3.86242507,2589.1,2588.8,5.928]
[1751980045736,3.86191768,2589.4,2588.8,9.79076475]
[1751980045965,5.24835942,2589.3,2588.9,0.1928]
[1751980046354,3.86221188,2589.2,2588.9,0.1928]
[1751980046664,5.2483277,2589.3,2588.9,0.1928]
[1751980047473,3.86163873,2589.6,2589.1,3.86227325]
[1751980047643,3.86181358,2589.5,2589.2,5.925]
[1751980047841,10.55,2589.5,2589.2,5.941]
[1751980048046,3.86210957,2589.3,2589.1,5.942]
[1751980048246,5.68950477,2589.3,2588.9,5.942]
[1751980049350,5.68950477,2589.3,2588.8,3.86279128]
[1751980049549,3.86219877,2589.2,2588.9,5.942]
[1751980050171,3.86235081,2589.1,2588.9,5.941]
[1751980050346,3.86229177,2589.2,2588.9,5.941]
[1751980050552,3.86238274,2589.1,2588.7,3.86286307]
[1751980050750,3.862793,2588.9,2588.4,5.31738956]
[1751980050958,3.862793,2588.9,2588.1,0.001]
[1751980050959,10.0,2588.8,2588.1,0.001]
[1751980051158,3.86356593,2588.3,2588.1,0.001]
[1751980051499,3.86354391,2588.3,2588.1,0.001]
[1751980051650,3.86325653,2588.5,2588.1,0.001]
[1751980051851,4.24958218,2588.5,2588.1,0.001]
[1751980052147,4.24962758,2588.5,2588.1,0.001]
[1751980055074,0.38632565,2588.5,2588.1,3.86481762]
[1751980055274,3.86325368,2588.5,2588.1,3.86481762]
[1751980056267,0.55,2588.5,2588.1,3.86481762]
[1751980056479,0.55,2588.5,2588.1,0.001]
[1751980056480,3.86339959,2588.4,2588.1,0.001]
[1751980057085,3.86354285,2588.3,2588.1,0.001]
[1751980057396,3.86346511,2588.4,2588.1,0.001]
[1751980058186,3.86360944,2588.3,2588.1,0.001]
[1751980058360,14.41368905,2588.2,2588.1,0.001]
[1751980061061,24.84785372,2588.2,2588.1,0.001]
[1751980061286,30.78685372,2588.2,2588.1,0.001]
[1751980061476,32.24985372,2588.2,2588.1,0.001]
[1751980061790,32.24985372,2588.2,2588.0,0.001]
[1751980061791,14.41383833,2588.1,2588.0,1e-08]
[1751980062294,14.41503304,2587.3,2586.6,0.0727039]
[1751980062458,3.86592956,2586.7,2586.6,0.0727039]
[1751980062661,3.86562646,2587.0,2586.6,0.0727039]
[1751980062862,10.0,2586.9,2586.6,0.0727039]
[1751980063083,19.81664576,2586.9,2586.6,0.0727039]
[1751980063897,3.86578613,2586.8,2586.6,0.0727039]
[1751980064192,19.8166993,2586.9,2586.6,0.0727039]
[1751980065169,3.86592956,2586.7,2586.6,0.0727039]
[1751980065476,4.41592956,2586.7,2586.6,0.0727039]
[1751980066008,9.81479703,2586.8,2586.6,0.0727039]
[1751980066601,5.949,2586.8,2586.6,0.0727039]
[1751980070691,10.0,2586.7,2586.6,0.0727039]
[1751980070890,14.86105933,2586.7,2586.6,0.0727039]
[1751980073094,6.39412977,2586.7,2586.6,0.0727039]
[1751980073426,0.1928,2586.7,2586.6,0.0727039]
[1751980073931,0.1928,2586.7,2586.6,3.93878292]
[1751980074128,10.1928,2586.7,2586.6,3.93878292]
[1751980074334,0.1928,2586.7,2586.6,3.93878292]
[1751980074925,0.1928,2586.7,2586.6,0.0727039]
[1751980075238,0.1928,2586.7,2586.6,3.93878292]
[1751980076205,0.1928,2586.7,2586.6,0.0727039]
[1751980077447,0.1928,2586.7,2586.6,3.93878292]
[1751980077745,3.86592956,2586.7,2586.6,0.0727039]
[1751980077943,21.82280252,2586.7,2586.6,0.0727039]
[1751980080441,12.01087296,2586.7,2586.6,0.0727039]
[1751980080638,16.5,2586.7,2586.6,0.0727039]
[1751980081315,20.36592956,2586.7,2586.6,0.0727039]
[1751980081734,16.5,2586.7,2586.6,0.0727039]
[1751980082143,16.1428,2586.7,2586.6,0.0727039]
[1751980082531,10.1928,2586.7,2586.6,0.0727039]
[1751980082737,16.1408,2586.7,2586.6,0.0727039]
[1751980083442,16.34219802,2586.7,2586.6,0.0727039]
[1751980084934,10.20139802,2586.7,2586.6,0.0727039]
[1751980085121,10.20139802,2586.7,2586.6,0.2655039]
[1751980085858,10.20139802,2586.7,2586.6,4.13158292]
[1751980086551,16.1378,2587.1,2586.8,3.86570492]
[1751980086751,0.31819649,2587.0,2586.7,3.86585446]
[1751980086947,10.39420925,2587.1,2586.7,3.86585446]
[1751980087316,0.31823368,2587.0,2586.7,3.86585446]
[1751980087746,0.31823368,2587.0,2586.8,3.86571674]
[1751980087916,0.31823368,2587.0,2586.7,3.86587914]
[1751980089840,0.31823368,2587.0,2586.9,3.86563067]
[1751980090547,0.31823368,2587.0,2586.8,0.1928]
[1751980091163,4.18381483,2587.0,2586.8,0.1928]
[1751980091347,0.31823368,2586.9,2586.8,0.1928]
[1751980092162,0.31823368,2587.0,2586.8,0.1928]
[1751980092333,0.31823368,2586.9,2586.8,0.1928]
[1751980093141,0.31823368,2586.9,2586.8,4.05858011]
[1751980093539,16.14840925,2587.1,2586.9,3.86563067]
[1751980093732,0.31410029,2587.0,2586.8,4.05849794]
[1751980094061,0.31410029,2587.0,2586.8,4.05852278]
[1751980094225,0.31410029,2587.0,2586.8,0.1928]
[1751980096325,0.31410029,2587.0,2586.9,4.69193067]
[1751980096565,7.89,2587.2,2587.0,3.86548125]
[1751980096764,7.89,2587.2,2587.1,3.86533183]
[1751980096973,0.31394012,2587.2,2587.1,3.86533183]
[1751980097131,10.00026808,2587.7,2587.2,3.86504917]
[1751980097332,10.51546895,2587.6,2587.2,3.86504917]
[1751980097532,0.31393241,2587.5,2587.3,0.1928]
[1751980097766,0.31393241,2587.5,2587.4,0.7557]
[1751980100237,0.20153654,2587.6,2587.4,0.7557]
[1751980101535,0.20153654,2587.6,2587.4,4.62051721]
[1751980101736,0.002,2587.5,2587.4,0.7557]
[1751980106374,0.002,2587.5,2587.4,4.62058366]
[1751980106793,0.002,2587.5,2587.4,6.56492203]
[1751980107458,0.002,2587.5,2587.4,6.60357086]
[1751980107879,0.002,2587.5,2587.4,12.54757086]
[1751980108078,0.002,2587.5,2587.4,12.50892203]
[1751980109988,0.002,2588.3,2587.5,0.55]
[1751980110189,9.287,2589.8,2588.2,4.68088905]
[1751980110388,3.86368466,2589.6,2589.0,0.8172]
[1751980110594,10.0,2589.5,2589.1,9.82324583]
[1751980111094,4.06519699,2589.6,2589.1,5.961]
[1751980111405,13.8617835,2589.5,2589.1,5.961]
[1751980112000,3.8617835,2589.5,2589.1,5.961]
[1751980112870,0.20351233,2589.6,2589.1,5.961]
[1751980113077,10.0,2589.5,2589.1,9.82327598]
[1751980113276,10.0,2589.5,2589.1,5.961]
[1751980113713,0.20351233,2589.6,2589.1,11.27363238]
[1751980114009,3.86361261,2589.6,2589.1,11.27359817]
[1751980114194,3.8617638,2589.5,2589.2,7.42]
[1751980114394,3.8617638,2589.5,2589.2,8.77499313]
[1751980114603,3.86367492,2589.6,2589.3,5.957]
[1751980115522,3.8618985,2589.4,2589.3,5.956]
[1751980115876,3.8618985,2589.4,2589.3,5.955]
[1751980116080,3.8618985,2589.4,2589.0,0.8172]
[1751980116270,3.8618985,2589.4,2589.1,5.955]
[1751980116625,3.86227361,2589.2,2589.1,5.954]
[1751980118204,3.86242285,2589.1,2588.8,0.9914]
[1751980118516,3.8622802,2589.2,2588.9,5.955]
[1751980119017,3.86236965,2589.1,2588.8,0.9914]
[1751980119317,0.1928,2589.3,2589.0,5.952]
[1751980119517,3.86227766,2589.2,2589.0,5.952]
[1751980119680,3.86227766,2589.2,2588.8,0.9914]
[1751980119681,3.86227766,2589.2,2589.1,5.951]
[1751980120316,3.86227766,2589.2,2588.8,0.9914]
[1751980120614,3.86227766,2589.2,2589.0,5.951]
[1751980121515,0.1928,2589.3,2589.0,5.951]
[1751980121901,13.86181473,2589.5,2589.0,11.2802114]
[1751980122078,0.002,2589.6,2589.2,4.05492671]
[1751980122404,13.86360835,2589.6,2589.3,5.949]
[1751980122893,13.86360835,2589.6,2589.2,0.1928]
[1751980122894,3.8617656,2589.5,2589.2,0.1928]
[1751980123095,3.86189484,2589.5,2589.2,6.1418]
[1751980123306,3.86189484,2589.5,2589.2,0.1928]
[1751980123478,3.86189484,2589.5,2589.2,6.1418]
[1751980124383,3.86204765,2589.3,2589.2,0.1928]
[1751980124582,0.002,2589.6,2589.2,5.948]
[1751980124583,3.86197252,2589.4,2589.2,5.948]
[1751980124983,3.86197252,2589.4,2589.1,6.1398]
[1751980127536,3.86210613,2589.3,2589.1,6.1398]
[1751980127839,3.86196184,2589.4,2589.1,6.1398]
[1751980128599,10.0,2589.4,2589.1,6.1398]
[1751980128795,10.0,2589.4,2589.1,6.1368]
[1751980128796,13.86190464,2589.4,2589.1,6.1368]
[1751980129224,3.86213675,2589.3,2589.1,0.1928]
[1751980129597,15.68347604,2589.4,2589.1,0.1928]
[1751980129796,3.86204846,2589.3,2589.1,0.1928]
[1751980133341,3.86236961,2589.1,2588.9,5.937]
[1751980133539,3.86236961,2589.1,2588.8,0.1928]
[1751980133745,3.86227672,2589.2,2588.8,6.1308]
[1751980134999,3.86234693,2589.1,2588.8,6.1308]
[1751980137024,3.86234693,2589.1,2588.8,6.1268]
[1751980138404,1.82148669,2589.4,2588.7,0.7983]
[1751980138733,3.86250283,2589.0,2588.8,5.932]
[1751980139501,3.86275792,2588.9,2588.4,7.8447621]
[1751980139706,3.86275792,2588.9,2588.5,6.1248]
[1751980140618,3.86279574,2588.8,2588.6,5.931]
[1751980140936,3.862735,2588.9,2588.6,5.93]
[1751980141308,3.862735,2588.9,2588.7,5.93]
[1751980141309,3.86279357,2588.8,2588.7,5.93]
[1751980141508,3.86271897,2588.9,2588.7,5.93]
[1751980143729,3.86282623,2588.8,2588.5,0.1928]
[1751980144041,3.86282623,2588.8,2588.6,5.928]
[1751980144411,3.86273345,2588.9,2588.6,5.928]
[1751980144615,3.86279639,2588.8,2588.6,5.928]
[1751980144816,3.8628672,2588.8,2588.6,5.928]
[1751980145048,3.8627303,2588.9,2588.6,5.928]
[1751980146957,3.8627303,2588.9,2588.5,4.05604016]
[1751980147457,3.8627303,2588.9,2588.6,5.924]
[1751980147866,3.8627303,2588.9,2588.6,5.923]
[1751980148582,0.1928,2589.0,2588.5,0.1928]
[1751980148583,3.86280465,2588.8,2588.5,0.1928]
[1751980148862,4.05544436,2588.9,2588.4,6.9152]